fUSD/lending_fUSD_20240105
["ID","MTS","AMOUNT","RATE_DAILY","PERIOD"]
[310268840,1704426650914,-500.0,0.0003589,3]
[310268841,1704426650923,-500.0,0.0003589,3]
[310268842,1704426650933,-2516.38,0.0003589,3]
[310268843,1704426650944,-3188.88,0.0003589,3]
[310268844,1704426650955,-500.0,0.0003589,3]
[310268845,1704426650964,-500.0,0.0003589,3]
[310268846,1704426650974,-500.0,0.0003589,3]
[310268847,1704426650983,-2269.54,0.0003589,3]
[310268848,1704426650992,-1048.62,0.0003589,3]
[310268849,1704426651002,-500.0,0.0003589,3]
[310268850,1704426651012,-500.0,0.0003589,3]
[310268851,1704426651027,-500.0,0.0003589,3]
[310268852,1704426651037,-358.30472484,0.0003589,3]
[310268853,1704426651046,-500.0,0.0003589,3]
[310268854,1704426651056,-500.0,0.0003589,3]
[310268855,1704426651066,-500.0,0.0003589,3]
[310268856,1704426651075,-500.0,0.0003589,3]
[310268857,1704426651085,-500.0,0.0003589,3]
[310268858,1704426651094,-500.0,0.0003589,3]
[310268859,1704426651105,-1600.87,0.0003589,3]
[310268860,1704426651115,-419.24713014,0.0003589,3]
[310268861,1704426651124,-500.0,0.0003589,3]
[310268862,1704426651134,-500.0,0.0003589,3]
[310268863,1704426651143,-500.0,0.0003589,3]
[310268864,1704426651152,-500.0,0.0003589,3]
[310268865,1704426651162,-500.0,0.0003589,3]
[310268866,1704426651172,-500.0,0.0003589,3]
[310268867,1704426651181,-220.28259805,0.0003589,3]
[310268868,1704426651190,-234.40105,0.00035898,2]
[310268869,1704426651200,-234.40105,0.00035998,2]
[310268870,1704426651209,-761.0717531,0.00036,4]
[310268871,1704426651219,-215.97400947,0.00036082,8]
[310268872,1704426651228,-234.40105,0.00036098,2]
[310268873,1704426651237,-619.26,0.00036107,2]
[310268874,1704426651247,-201.0,0.00036111,2]
[310268875,1704426651257,-165.64,0.00036164,2]
[310268876,1704426651266,-3408.18494152,0.00036164,3]
[310268877,1704426651275,-200.0,0.00036164,2]
[310268878,1704426651285,-350.23223636,0.00036164,4]
[310268879,1704426651294,-500.0,0.00036164,3]
[310268880,1704426651303,-667.98,0.00036164,3]
[310268881,1704426651313,-500.0,0.00036164,3]
[310268882,1704426651322,-500.0,0.00036164,3]
[310268883,1704426651331,-500.0,0.00036164,3]
[310268884,1704426651340,-182.49655421,0.00036164,3]
[310268885,1704426651350,-500.0,0.00036164,3]
[310268886,1704426651361,-500.0,0.00036164,3]
[310268887,1704426651371,-164.10586097,0.00036164,3]
[310268888,1704426651380,-500.0,0.00036164,3]
[310268889,1704426651390,-503.60893026,0.00036164,3]
[310268890,1704426651400,-500.0,0.00036164,3]
[310268891,1704426651409,-357.01340345,0.00036164,3]
[310268892,1704426651419,-500.0,0.00036164,3]
[310268893,1704426651428,-500.0,0.00036164,3]
[310268894,1704426651437,-337.28519247,0.00036164,3]
[310268895,1704426651447,-500.0,0.00036164,3]
[310268896,1704426651456,-559.7055229,0.00036164,3]
[310268897,1704426651466,-521.02146919,0.00036164,3]
[310268898,1704426651475,-500.0,0.00036164,3]
[310268899,1704426651486,-519.85515083,0.00036164,3]
[310268900,1704426651496,-500.0,0.00036164,3]
[310268901,1704426651505,-500.0,0.00036164,2]
[310268902,1704426651515,-500.0,0.00036164,3]
[310268903,1704426651528,-500.0,0.00036164,3]
[310268904,1704426651537,-471.01977986,0.00036164,3]
[310268905,1704426651547,-521.7006854,0.00036164,3]
[310268906,1704426651557,-500.0,0.00036164,3]
[310268907,1704426651567,-500.0,0.00036164,3]
[310268908,1704426651577,-500.0,0.00036164,3]
[310268909,1704426651587,-500.0,0.00036164,3]
[310268910,1704426651597,-395.04905409,0.00036164,3]
[310268911,1704426651607,-500.0,0.00036164,3]
[310268912,1704426651618,-332.1611407,0.00036164,3]
[310268913,1704426651628,-424.62308128,0.00036164,3]
[310268914,1704426651638,-500.0,0.00036164,3]
[310268915,1704426651648,-500.0,0.00036164,3]
[310268916,1704426651659,-419.07649849,0.00036164,3]
[310268917,1704426651669,-500.0,0.00036164,3]
[310268918,1704426651678,-500.0,0.00036164,3]
[310268919,1704426651688,-170.70049003,0.00036164,3]
[310268920,1704426651697,-500.0,0.00036164,3]
[310268921,1704426651707,-500.0,0.00036164,3]
[310268922,1704426651717,-299.39552052,0.00036164,3]
[310268923,1704426651727,-500.0,0.00036164,3]
[310268924,1704426651737,-500.0,0.00036164,3]
[310268925,1704426651747,-467.80519452,0.00036164,3]
[310268926,1704426651756,-500.0,0.00036164,3]
[310268927,1704426651768,-500.0,0.00036164,3]
[310268928,1704426651778,-500.0,0.00036164,3]
[310268929,1704426651787,-500.0,0.00036164,3]
[310268930,1704426651798,-448.07347972,0.00036164,3]
[310268931,1704426651808,-317.3157347,0.00036164,3]
[310268932,1704426651818,-432.56200255,0.00036164,3]
[310268933,1704426651828,-500.0,0.00036164,3]
[310268934,1704426651837,-500.0,0.00036164,3]
[310268935,1704426651846,-421.49172722,0.00036164,3]
[310268936,1704426651857,-500.0,0.00036164,3]
[310268937,1704426651870,-500.0,0.00036164,3]
[310268938,1704426651880,-565.24374346,0.00036164,3]
[310268939,1704426651890,-500.0,0.00036164,3]
[310268940,1704426651900,-500.0,0.00036164,3]
[310268941,1704426651909,-500.0,0.00036164,3]
[310268942,1704426651920,-500.0,0.00036164,3]
[310268943,1704426651929,-619.1550577,0.00036164,3]
[310268944,1704426651939,-500.0,0.00036164,3]
[310268945,1704426651952,-516.34938278,0.00036164,3]
[310268946,1704426651962,-412.36498412,0.00036164,3]
[310268947,1704426651971,-500.0,0.00036164,3]
[310268948,1704426651981,-500.0,0.00036164,3]
[310268949,1704426651991,-500.0,0.00036164,3]
[310268950,1704426652001,-500.0,0.00036164,3]
[310268951,1704426652010,-500.0,0.00036164,3]
[310268952,1704426652020,-153.68056273,0.00036164,3]
[310268953,1704426652030,-500.0,0.00036164,3]
[310268954,1704426652039,-179.03302893,0.00036164,3]
[310268955,1704426652050,-533.93187242,0.00036164,3]
[310268956,1704426652059,-235.66570768,0.00036164,3]
[310268957,1704426652070,-500.0,0.00036164,3]
[310268958,1704426652080,-500.0,0.00036164,3]
[310268959,1704426652089,-500.0,0.00036164,3]
[310268960,1704426652099,-500.0,0.00036164,3]
[310268961,1704426652109,-528.15044861,0.00036164,3]
[310268962,1704426652120,-500.0,0.00036164,3]
[310268963,1704426652131,-500.0,0.00036164,3]
[310268964,1704426652141,-500.0,0.00036164,3]
[310268965,1704426652150,-500.0,0.00036164,3]
[310268966,1704426652160,-500.0,0.00036164,3]
[310268967,1704426652171,-500.0,0.00036164,3]
[310268968,1704426652180,-176.9094128,0.00036164,3]
[310268969,1704426652190,-270.56012289,0.00036164,3]
[310268970,1704426652200,-500.0,0.00036164,3]
[310268971,1704426652209,-500.0,0.00036164,3]
[310268972,1704426652219,-500.0,0.00036164,3]
[310268973,1704426652229,-500.0,0.00036164,3]
[310268974,1704426652239,-519.26,0.00036164,3]
[310268975,1704426652249,-500.0,0.00036164,3]
[310268976,1704426652258,-307.84609663,0.00036164,3]
[310268977,1704426652268,-500.0,0.00036164,3]
[310268978,1704426652278,-500.0,0.00036164,3]
[310268979,1704426652288,-500.0,0.00036164,3]
[310268980,1704426652297,-500.0,0.00036164,3]
[310268981,1704426652307,-500.0,0.00036164,3]
[310268982,1704426652316,-500.0,0.00036164,3]
[310268983,1704426652326,-500.0,0.00036164,3]
[310268984,1704426652336,-500.0,0.00036164,3]
[310268985,1704426652346,-500.0,0.00036164,3]
[310268986,1704426652357,-500.0,0.00036164,3]
[310268987,1704426652367,-500.0,0.00036164,3]
[310268988,1704426652377,-543.32162711,0.00036164,3]
[310268989,1704426652386,-500.0,0.00036164,3]
[310268990,1704426652395,-335.1170587,0.00036164,3]
[310268991,1704426652404,-500.0,0.00036164,3]
[310268992,1704426652413,-500.0,0.00036164,3]
[310268993,1704426652422,-500.0,0.00036164,3]
[310268994,1704426652431,-205.95576529,0.00036164,3]
[310268995,1704426652441,-500.0,0.00036164,3]
[310268996,1704426652451,-500.0,0.00036164,3]
[310268997,1704426652460,-500.0,0.00036164,3]
[310268998,1704426652470,-500.0,0.00036164,3]
[310268999,1704426652479,-500.0,0.00036164,3]
[310269000,1704426652489,-500.0,0.00036164,3]
[310269001,1704426652498,-500.0,0.00036164,3]
[310269002,1704426652508,-413.63244451,0.00036164,3]
[310269003,1704426652518,-500.0,0.00036164,3]
[310269004,1704426652527,-500.0,0.00036164,3]
[310269005,1704426652536,-500.0,0.00036164,3]
[310269006,1704426652556,-500.0,0.00036164,3]
[310269007,1704426652566,-500.0,0.00036164,3]
[310269008,1704426652576,-500.0,0.00036164,3]
[310269009,1704426652586,-500.0,0.00036164,3]
[310269010,1704426652595,-500.0,0.00036164,3]
[310269011,1704426652605,-500.0,0.00036164,3]
[310269012,1704426652616,-500.0,0.00036164,3]
[310269013,1704426652626,-615.82463542,0.00036164,3]
[310269014,1704426652636,-643.43182595,0.00036164,3]
[310269015,1704426652645,-500.0,0.00036164,3]
[310269016,1704426652655,-500.0,0.00036164,3]
[310269017,1704426652665,-500.0,0.00036164,3]
[310269018,1704426652675,-591.03,0.00036164,3]
[310269019,1704426652684,-500.0,0.00036164,3]
[310269020,1704426652694,-500.0,0.00036164,3]
[310269021,1704426652704,-500.0,0.00036164,3]
[310269022,1704426652713,-504.70629543,0.00036164,3]
[310269023,1704426652723,-463.72,0.00036164,3]
[310269024,1704426652733,-500.0,0.00036164,3]
[310269025,1704426652742,-159.9463016,0.00036164,3]
[310269026,1704426652752,-500.0,0.00036164,3]
[310269027,1704426652761,-500.0,0.00036164,3]
[310269028,1704426652771,-500.0,0.00036164,3]
[310269029,1704426652780,-301.73,0.00036164,3]
[310269030,1704426652790,-318.76535384,0.00036164,3]
[310269031,1704426652799,-500.0,0.00036164,3]
[310269032,1704426652810,-500.0,0.00036164,3]
[310269033,1704426652821,-343.87671656,0.00036164,3]
[310269034,1704426652831,-500.0,0.00036164,3]
[310269035,1704426652841,-500.0,0.00036164,3]
[310269036,1704426652850,-500.0,0.00036164,3]
[310269037,1704426652860,-504.25,0.00036164,3]
[310269038,1704426652870,-500.0,0.00036164,3]
[310269039,1704426652880,-500.0,0.00036164,3]
[310269040,1704426652890,-500.0,0.00036164,3]
[310269041,1704426652901,-500.0,0.00036164,3]
[310269042,1704426652911,-500.0,0.00036164,3]
[310269043,1704426652920,-500.0,0.00036164,3]
[310269044,1704426652930,-500.0,0.00036164,3]
[310269045,1704426652941,-462.51120354,0.00036164,3]
[310269046,1704426652953,-690.84,0.00036164,3]
[310269047,1704426652963,-500.0,0.00036164,3]
[310269048,1704426652972,-586.40999593,0.00036164,3]
[310269049,1704426652983,-510.00090927,0.00036164,3]
[310269050,1704426652993,-500.0,0.00036164,3]
[310269051,1704426653002,-500.0,0.00036164,3]
[310269052,1704426653013,-1472.06,0.00036164,3]
[310269053,1704426653022,-500.0,0.00036164,3]
[310269054,1704426653032,-2696.47,0.00036164,3]
[310269055,1704426653042,-504.84,0.00036164,3]
[310269056,1704426653052,-570.54526268,0.00036164,3]
[310269057,1704426653062,-500.0,0.00036164,3]
[310269058,1704426653072,-500.0,0.00036164,3]
[310269059,1704426653084,-500.0,0.00036164,3]
[310269060,1704426653093,-500.0,0.00036164,3]
[310269061,1704426653102,-3658.31,0.00036164,3]
[310269062,1704426653113,-724.31,0.00036164,3]
[310269063,1704426653123,-500.0,0.00036164,3]
[310269064,1704426653133,-3809.35,0.00036164,3]
[310269065,1704426653143,-500.0,0.00036164,3]
[310269066,1704426653154,-500.0,0.00036164,3]
[310269067,1704426653164,-2426.03,0.00036164,3]
[310269068,1704426653174,-500.0,0.00036164,3]
[310269069,1704426653183,-2276.94,0.00036164,3]
[310269070,1704426653194,-649.27,0.00036164,3]
[310269071,1704426653203,-269.01226707,0.00036164,3]
[310269072,1704426653213,-500.0,0.00036164,3]
[310269073,1704426653225,-500.0,0.00036164,3]
[310269074,1704426653235,-500.0,0.00036164,3]
[310269075,1704426653244,-989.21,0.00036164,3]
[310269076,1704426653254,-857.38,0.00036164,3]
[310269077,1704426653264,-500.0,0.00036164,3]
[310269078,1704426653274,-1101.54,0.00036164,3]
[310269079,1704426653283,-530.91,0.00036164,3]
[310269080,1704426653293,-500.0,0.00036164,3]
[310269081,1704426653302,-500.0,0.00036164,3]
[310269082,1704426653312,-4044.87,0.00036164,3]
[310269083,1704426653322,-500.0,0.00036164,3]
[310269084,1704426653331,-500.0,0.00036164,3]
[310269085,1704426653341,-1525.19,0.00036164,3]
[310269086,1704426653352,-959.81,0.00036164,3]
[310269087,1704426653363,-608.2,0.00036164,3]
[310269088,1704426653373,-500.0,0.00036164,3]
[310269089,1704426653383,-500.0,0.00036164,3]
[310269090,1704426653393,-1536.58,0.00036164,3]
[310269091,1704426653403,-500.0,0.00036164,3]
[310269092,1704426653414,-614.8,0.00036164,3]
[310269093,1704426653424,-617.87,0.00036164,3]
[310269094,1704426653593,-1198.95,0.00036164,3]
[310269095,1704426653611,-500.0,0.00036164,3]
[310269096,1704426653621,-622.5,0.00036164,3]
[310269097,1704426653632,-500.0,0.00036164,3]
[310269098,1704426653642,-500.0,0.00036164,3]
[310269099,1704426653652,-1617.97,0.00036164,3]
[310269100,1704426653663,-571.01,0.00036164,3]
[310269101,1704426653672,-500.0,0.00036164,3]
[310269102,1704426653682,-961.92,0.00036164,3]
[310269103,1704426653691,-500.0,0.00036164,3]
[310269104,1704426653701,-370.80207334,0.00036164,3]
[310269105,1704426653710,-500.0,0.00036164,3]
[310269106,1704426653720,-500.0,0.00036164,3]
[310269107,1704426653730,-504.63,0.00036164,3]
[310269108,1704426653740,-1085.34,0.00036164,3]
[310269109,1704426653750,-500.0,0.00036164,3]
[310269110,1704426653760,-500.0,0.00036164,3]
[310269111,1704426653769,-940.61,0.00036164,3]
[310269112,1704426653779,-500.0,0.00036164,3]
[310269113,1704426653789,-500.0,0.00036164,3]
[310269114,1704426653800,-674.03,0.00036164,3]
[310269115,1704426653810,-500.0,0.00036164,3]
[310269116,1704426653819,-500.0,0.00036164,3]
[310269117,1704426653832,-189.64911196,0.00036164,3]
[310269118,1704426653842,-752.67,0.00036164,3]
[310269119,1704426653851,-500.0,0.00036164,3]
[310269120,1704426653863,-500.0,0.00036164,3]
[310269121,1704426653872,-500.0,0.00036164,3]
[310269122,1704426653882,-1972.87,0.00036164,3]
[310269123,1704426653892,-500.0,0.00036164,3]
[310269124,1704426653902,-621.19,0.00036164,3]
[310269125,1704426653912,-1403.18,0.00036164,3]
[310269126,1704426653922,-822.72,0.00036164,3]
[310269127,1704426653932,-771.9,0.00036164,3]
[310269128,1704426653942,-847.37,0.00036164,3]
[310269129,1704426653954,-500.0,0.00036164,3]
[310269130,1704426653964,-500.0,0.00036164,3]
[310269131,1704426653974,-500.0,0.00036164,3]
[310269132,1704426653983,-500.0,0.00036164,3]
[310269133,1704426653992,-500.0,0.00036164,3]
[310269134,1704426654002,-865.75,0.00036164,3]
[310269135,1704426654011,-4604.97,0.00036164,3]
[310269136,1704426654020,-1363.94,0.00036164,3]
[310269137,1704426654031,-1152.91,0.00036164,3]
[310269138,1704426654040,-500.0,0.00036164,3]
[310269139,1704426654050,-500.0,0.00036164,3]
[310269140,1704426654059,-713.57,0.00036164,3]
[310269141,1704426654069,-500.0,0.00036164,3]
[310269142,1704426654078,-833.72,0.00036164,3]
[310269143,1704426654087,-10636.52,0.00036164,3]
[310269144,1704426654098,-1032.64,0.00036164,3]
[310269145,1704426654108,-577.17,0.00036164,3]
[310269146,1704426654118,-697.16,0.00036164,3]
[310269147,1704426654128,-706.13,0.00036164,3]
[310269148,1704426654138,-500.0,0.00036164,3]
[310269149,1704426654148,-500.0,0.00036164,3]
[310269150,1704426654157,-500.0,0.00036164,3]
[310269151,1704426654166,-375.16661501,0.00036164,3]
[310269152,1704426654175,-500.0,0.00036164,3]
[310269153,1704426654185,-500.0,0.00036164,3]
[310269154,1704426654195,-420.29808185,0.00036164,3]
[310269155,1704426654205,-2369.49,0.00036164,3]
[310269156,1704426654214,-500.0,0.00036164,3]
[310269157,1704426654224,-500.0,0.00036164,3]
[310269158,1704426654233,-500.0,0.00036164,3]
[310269159,1704426654243,-500.0,0.00036164,3]
[310269160,1704426654254,-500.0,0.00036164,3]
[310269161,1704426654265,-500.0,0.00036164,3]
[310269162,1704426654274,-500.0,0.00036164,3]
[310269163,1704426654285,-500.0,0.00036164,3]
[310269164,1704426654297,-500.0,0.00036164,3]
[310269165,1704426654308,-500.0,0.00036164,3]
[310269166,1704426654319,-1047.44,0.00036164,3]
[310269167,1704426654329,-500.0,0.00036164,3]
[310269168,1704426654339,-500.0,0.00036164,3]
[310269169,1704426654350,-500.0,0.00036164,3]
[310269170,1704426654360,-500.0,0.00036164,3]
[310269171,1704426654371,-500.0,0.00036164,3]
[310269172,1704426654381,-500.0,0.00036164,3]
[310269173,1704426654390,-829.4,0.00036164,3]
[310269174,1704426654401,-641.05,0.00036164,3]
[310269175,1704426654412,-500.0,0.00036164,3]
[310269176,1704426654423,-595.45,0.00036164,3]
[310269177,1704426654433,-670.02,0.00036164,3]
[310269178,1704426654443,-500.0,0.00036164,3]
[310269179,1704426654453,-500.0,0.00036164,3]
[310269180,1704426654463,-500.0,0.00036164,3]
[310269181,1704426654472,-500.0,0.00036164,3]
[310269182,1704426654481,-1507.93,0.00036164,3]
[310269183,1704426654491,-500.0,0.00036164,3]
[310269184,1704426654503,-500.0,0.00036164,3]
[310269185,1704426654512,-500.0,0.00036164,3]
[310269186,1704426654522,-500.0,0.00036164,3]
[310269187,1704426654531,-854.4,0.00036164,3]
[310269188,1704426654541,-6296.63,0.00036164,3]
[310269189,1704426654552,-500.0,0.00036164,3]
[310269190,1704426654562,-500.0,0.00036164,3]
[310269191,1704426654571,-1242.44,0.00036164,3]
[310269192,1704426654581,-500.0,0.00036164,3]
[310269193,1704426654591,-609.99,0.00036164,3]
[310269194,1704426654601,-702.9,0.00036164,3]
[310269195,1704426654610,-500.0,0.00036164,3]
[310269196,1704426654621,-998.14,0.00036164,3]
[310269197,1704426654631,-500.0,0.00036164,3]
[310269198,1704426654642,-500.0,0.00036164,3]
[310269199,1704426654653,-500.0,0.00036164,3]
[310269200,1704426654663,-1175.59,0.00036164,3]
[310269201,1704426654673,-594.66380823,0.00036164,3]
[310269202,1704426654682,-500.0,0.00036164,3]
[310269203,1704426654692,-192.44656253,0.00036164,3]
[310269204,1704426654702,-500.0,0.00036164,3]
[310269205,1704426654712,-500.0,0.00036164,3]
[310269206,1704426654722,-500.0,0.00036164,3]
[310269207,1704426654732,-500.0,0.00036164,3]
[310269208,1704426654742,-500.0,0.00036164,3]
[310269209,1704426654751,-500.0,0.00036164,3]
[310269210,1704426654762,-2629.24,0.00036164,3]
[310269211,1704426654771,-500.0,0.00036164,3]
[310269212,1704426654781,-203.1967095,0.00036164,3]
[310269213,1704426654790,-749.33,0.00036164,3]
[310269214,1704426654800,-601.92,0.00036164,3]
[310269215,1704426654810,-500.0,0.00036164,3]
[310269216,1704426654819,-1845.39,0.00036164,3]
[310269217,1704426654829,-500.0,0.00036164,3]
[310269218,1704426654838,-277.02950873,0.00036164,3]
[310269219,1704426654848,-500.0,0.00036164,3]
[310269220,1704426654858,-500.0,0.00036164,3]
[310269221,1704426654868,-500.0,0.00036164,3]
[310269222,1704426654877,-585.01,0.00036164,3]
[310269223,1704426654886,-500.0,0.00036164,3]
[310269224,1704426654895,-171.51623277,0.00036164,3]
[310269225,1704426654905,-500.0,0.00036164,3]
[310269226,1704426654914,-500.0,0.00036164,3]
[310269227,1704426654923,-2516.38,0.00036164,3]
[310269228,1704426654933,-500.0,0.00036164,3]
[310269229,1704426654942,-3188.88,0.00036164,3]
[310269230,1704426654957,-500.0,0.00036164,3]
[310269231,1704426654966,-500.0,0.00036164,3]
[310269232,1704426654976,-2269.54,0.00036164,3]
[310269233,1704426654985,-1048.62,0.00036164,3]
[310269234,1704426654995,-500.0,0.00036164,3]
[310269235,1704426655005,-582.72087775,0.00036164,3]
[310269236,1704426655014,-500.0,0.00036164,3]
[310269237,1704426655023,-500.0,0.00036164,3]
[310269238,1704426655033,-500.0,0.00036164,3]
[310269239,1704426655042,-226.74529396,0.00036164,3]
[310269240,1704426655051,-500.0,0.00036164,3]
[310269241,1704426655060,-500.0,0.00036164,3]
[310269242,1704426655069,-500.0,0.00036164,3]
[310269243,1704426655079,-1600.87,0.00036164,3]
[310269244,1704426655088,-629.92313968,0.00036164,3]
[310269245,1704426655097,-500.0,0.00036164,3]
[310269246,1704426655106,-500.0,0.00036164,3]
[310269247,1704426655116,-500.0,0.00036164,3]
[310269248,1704426655126,-415.92875453,0.00036164,3]
[310269249,1704426655135,-500.0,0.00036164,3]
[310269250,1704426655145,-234.40105,0.00036198,2]
[310269251,1704426655155,-234.40105,0.00036298,2]
[310269252,1704426655165,-798.59923261,0.00036363,2]
[310269253,1704426655174,-234.40105,0.00036398,2]
[310269254,1704426655185,-5732.84563439,0.000364,2]
[310269255,1704426655193,-165.64,0.00036438,2]
[310269256,1704426655203,-667.98,0.00036438,3]
[310269257,1704426655212,-500.0,0.00036438,3]
[310269258,1704426655222,-500.0,0.00036438,3]
[310269259,1704426655232,-500.0,0.00036438,3]
[310269260,1704426655241,-440.49138624,0.00036438,3]
[310269261,1704426655251,-486.57356027,0.00036438,3]
[310269262,1704426655262,-189.27985105,0.00036438,3]
[310269263,1704426655271,-500.0,0.00036438,3]
[310269264,1704426655281,-500.0,0.00036438,3]
[310269265,1704426655291,-500.0,0.00036438,3]
[310269266,1704426655300,-269.37213225,0.00036438,2]
[310269267,1704426655310,-500.0,0.00036438,3]
[310269268,1704426655320,-635.71630795,0.00036438,3]
[310269269,1704426655330,-500.0,0.00036438,3]
[310269270,1704426655340,-500.0,0.00036438,3]
[310269271,1704426655351,-277.49191948,0.00036438,3]
[310269272,1704426655361,-500.0,0.00036438,3]
[310269273,1704426655371,-500.0,0.00036438,3]
[310269274,1704426655380,-500.0,0.00036438,3]
[310269275,1704426655390,-323.7283184,0.00036438,3]
[310269276,1704426655399,-500.0,0.00036438,3]
[310269277,1704426655409,-500.0,0.00036438,3]
[310269278,1704426655419,-500.0,0.00036438,3]
[310269279,1704426655428,-500.0,0.00036438,3]
[310269280,1704426655438,-632.69150205,0.00036438,3]
[310269281,1704426655447,-500.0,0.00036438,3]
[310269282,1704426655457,-500.0,0.00036438,3]
[310269283,1704426655466,-500.0,0.00036438,3]
[310269284,1704426655476,-500.0,0.00036438,3]
[310269285,1704426655486,-403.07761867,0.00036438,3]
[310269286,1704426655496,-500.0,0.00036438,3]
[310269287,1704426655505,-482.60875096,0.00036438,3]
[310269288,1704426655515,-449.6,0.00036438,3]
[310269289,1704426655525,-376.44683054,0.00036438,3]
[310269290,1704426655534,-610.1041691,0.00036438,3]
[310269291,1704426655544,-607.51757548,0.00036438,3]
[310269292,1704426655554,-500.0,0.00036438,3]
[310269293,1704426655564,-293.66599094,0.00036438,3]
[310269294,1704426655574,-560.59043645,0.00036438,3]
[310269295,1704426655584,-500.0,0.00036438,3]
[310269296,1704426655596,-500.0,0.00036438,3]
[310269297,1704426655607,-500.0,0.00036438,3]
[310269298,1704426655617,-500.0,0.00036438,3]
[310269299,1704426655630,-500.0,0.00036438,3]
[310269300,1704426655967,-179.73493575,0.00036438,3]
[310269301,1704426655982,-500.0,0.00036438,3]
[310269302,1704426655991,-500.0,0.00036438,3]
[310269303,1704426656001,-500.0,0.00036438,3]
[310269304,1704426656010,-237.16002705,0.00036438,3]
[310269305,1704426656019,-500.0,0.00036438,3]
[310269306,1704426656029,-475.65376534,0.00036438,3]
[310269307,1704426656038,-500.0,0.00036438,3]
[310269308,1704426656048,-500.0,0.00036438,3]
[310269309,1704426656057,-163.97491872,0.00036438,3]
[310269310,1704426656067,-500.0,0.00036438,3]
[310269311,1704426656077,-500.0,0.00036438,3]
[310269312,1704426656086,-519.26,0.00036438,3]
[310269313,1704426656097,-500.0,0.00036438,3]
[310269314,1704426656106,-174.64261633,0.00036438,3]
[310269315,1704426656115,-500.0,0.00036438,3]
[310269316,1704426656125,-500.0,0.00036438,3]
[310269317,1704426656135,-500.0,0.00036438,3]
[310269318,1704426656145,-314.70912629,0.00036438,3]
[310269319,1704426656155,-500.0,0.00036438,3]
[310269320,1704426656165,-500.0,0.00036438,3]
[310269321,1704426656174,-500.0,0.00036438,3]
[310269322,1704426656183,-500.0,0.00036438,3]
[310269323,1704426656192,-500.0,0.00036438,3]
[310269324,1704426656202,-500.0,0.00036438,3]
[310269325,1704426656213,-500.0,0.00036438,3]
[310269326,1704426656223,-500.0,0.00036438,3]
[310269327,1704426656234,-500.0,0.00036438,3]
[310269328,1704426656243,-500.0,0.00036438,3]
[310269329,1704426656253,-395.59267549,0.00036438,3]
[310269330,1704426656262,-500.0,0.00036438,3]
[310269331,1704426656271,-553.1430161,0.00036438,3]
[310269332,1704426656281,-526.33934513,0.00036438,3]
[310269333,1704426656290,-500.0,0.00036438,3]
[310269334,1704426656298,-500.0,0.00036438,3]
[310269335,1704426656308,-458.37487206,0.00036438,3]
[310269336,1704426656317,-500.0,0.00036438,3]
[310269337,1704426656326,-500.0,0.00036438,3]
[310269338,1704426656336,-500.0,0.00036438,3]
[310269339,1704426656345,-500.0,0.00036438,3]